Workbook

Sheet الأيام
A1: طول الشهر | B1: 20 | C1: يوم | H1: سنوات | I1: الأيام | J1: شهور | K1: باقي أيام
E2: احتمال ثان | F2: 2022-01-08 | G2: 2022-12-31 | H2: =GetYears(G2,F2) -> 0.9808219178 | I2: =H2*12*B$1 -> 235.3972603 | J2: =INT(I2/B$1) -> 11 | K2: =MOD(I2,B$1) -> 15.39726027 | L2: =ROUND(K2,0) -> 15
F3: 2022-02-08 | G3: 2022-12-31 | H3: =GetYears(G3,F3) -> 0.895890411 | I3: =H3*12*B$1 -> 215.0136986 | J3: =INT(I3/B$1) -> 10 | K3: =MOD(I3,B$1) -> 15.01369863 | L3: =ROUND(K3,0) -> 15
F4: 2022-03-08 | G4: 2022-12-31 | H4: 0.8191780822 | I4: =H4*12*B$1 -> 196.6027397 | J4: =INT(I4/B$1) -> 9 | K4: =MOD(I4,B$1) -> 16.60273973 | L4: 17
F5: 2022-04-08 | G5: 2022-12-31 | H5: 0.7342465753 | I5: =H5*12*B$1 -> 176.2191781 | J5: =INT(I5/B$1) -> 8 | K5: =MOD(I5,B$1) -> 16.21917808 | L5: 16
F6: 2022-05-08 | G6: 2022-12-31 | H6: 0.6520547945 | I6: =H6*12*B$1 -> 156.4931507 | J6: =INT(I6/B$1) -> 7 | K6: =MOD(I6,B$1) -> 16.49315068 | L6: 16
F7: 2022-06-08 | G7: 2022-12-31 | H7: 0.5671232877 | I7: =H7*12*B$1 -> 136.109589 | J7: =INT(I7/B$1) -> 6 | K7: =MOD(I7,B$1) -> 16.10958904 | L7: 16
F9: لن يتأثر بطول الشهر المحدد وهذا ليس مطلبك الأول
E10: اقتراح ثالث | F10: 2022-01-08 | G10: 2022-12-31 | I10: =G10-F10+1 -> 358 | J10: =DATEDIF(F10- 1,G10,"m") -> 11 | K10: =DATEDIF(F10- 1,G10,"md") -> 24
F11: 2022-02-08 | G11: 2022-12-31 | I11: =G11-F11+1 -> 327 | J11: =DATEDIF(F11- 1,G11,"m") -> 10 | K11: =DATEDIF(F11- 1,G11,"md") -> 24
F12: 2022-03-08 | G12: 2022-12-31 | I12: 299 | J12: 9 | K12: 24
F13: 2022-04-08 | G13: 2022-12-31 | I13: 268 | J13: 8 | K13: 24
F14: 2022-05-08 | G14: 2022-12-31 | I14: 238 | J14: 7 | K14: 24
F15: 2022-06-08 | G15: 2022-12-31 | I15: 207 | J15: 6 | K15: 24
H17: سنوات | I17: الأيام | J17: شهور | K17: باقي أيام
E18: احتمال ثان | F18: 2022-01-01 | G18: 2022-12-31 | H18: =GetYears(G18,F18) -> 1 | I18: =H18*12*B$1 -> 240 | J18: =INT(I18/B$1) -> 12 | K18: =MOD(I18,B$1) -> 0 | L18: =ROUND(K18,0) -> 0
F19: 2022-02-01 | G19: 2022-12-31 | H19: =GetYears(G19,F19) -> 0.9150684932 | I19: =H19*12*B$1 -> 219.6164384 | J19: =INT(I19/B$1) -> 10 | K19: =MOD(I19,B$1) -> 19.61643836 | L19: =ROUND(K19,0) -> 20
F20: 2022-03-01 | G20: 2022-12-31 | H20: 0.8383561644 | I20: =H20*12*B$1 -> 201.2054795 | J20: =INT(I20/B$1) -> 10 | K20: =MOD(I20,B$1) -> 1.205479452 | L20: 1
F21: 2022-04-01 | G21: 2022-12-31 | H21: 0.7534246575 | I21: =H21*12*B$1 -> 180.8219178 | J21: =INT(I21/B$1) -> 9 | K21: =MOD(I21,B$1) -> 0.8219178082 | L21: 1
F22: 2022-05-01 | G22: 2022-12-31 | H22: 0.6712328767 | I22: =H22*12*B$1 -> 161.0958904 | J22: =INT(I22/B$1) -> 8 | K22: =MOD(I22,B$1) -> 1.095890411 | L22: 1
F23: 2022-06-01 | G23: 2022-12-31 | H23: 0.5863013699 | I23: =H23*12*B$1 -> 140.7123288 | J23: =INT(I23/B$1) -> 7 | K23: =MOD(I23,B$1) -> 0.7123287671 | L23: 1
E25: اقتراح ثالث | F25: 2022-01-01 | G25: 2022-12-31 | I25: =G25-F25+1 -> 365 | J25: =DATEDIF(F25- 1,G25,"m") -> 12 | K25: =DATEDIF(F25- 1,G25,"md") -> 0
F26: 2022-02-01 | G26: 2022-12-31 | I26: =G26-F26+1 -> 334 | J26: =DATEDIF(F26- 1,G26,"m") -> 11 | K26: =DATEDIF(F26- 1,G26,"md") -> 0
F27: 2022-03-01 | G27: 2022-12-31 | I27: 306 | J27: 10 | K27: 3
F28: 2022-04-01 | G28: 2022-12-31 | I28: 275 | J28: 9 | K28: 0
F29: 2022-05-01 | G29: 2022-12-31 | I29: 245 | J29: 8 | K29: 1
F30: 2022-06-01 | G30: 2022-12-31 | I30: 214 | J30: 7 | K30: 0
